[Event "Late-Titled-Tuesday-Blitz-March-19-2024"]
[Site "Chess.com"]
[Date "2024.03.19"]
[Round "4"]
[White "GMAneta"]
[Black "alexrustemov"]
[Result "1-0"]
[WhiteElo "2621"]
[BlackElo "2858"]
[TimeControl "180+1"]
[EndTime "14:34:03 PDT"]
[Termination "GMAneta won by resignation"]

1. d4 {[%clk 0:02:58.9]} 1... d5 {[%clk 0:02:59.6]} 2. Nf3 {[%clk 0:02:54.5]}
2... Nf6 {[%clk 0:02:59.3]} 3. c4 {[%clk 0:02:54.3]} 3... dxc4 {[%clk
0:02:57.7]} 4. e3 {[%clk 0:02:53.5]} 4... e6 {[%clk 0:02:57.7]} 5. Bxc4 {[%clk
0:02:53.7]} 5... c5 {[%clk 0:02:57.7]} 6. Bd3 {[%clk 0:02:54]} 6... Nbd7 {[%clk
0:02:54.5]} 7. O-O {[%clk 0:02:53.7]} 7... b6 {[%clk 0:02:54.1]} 8. e4 {[%clk
0:02:52.8]} 8... Bb7 {[%clk 0:02:48.2]} 9. Re1 {[%clk 0:02:49.9]} 9... cxd4
{[%clk 0:02:41.4]} 10. e5 {[%clk 0:02:48.5]} 10... Nd5 {[%clk 0:02:40.4]} 11.
Nbd2 {[%clk 0:02:49.4]} 11... Be7 {[%clk 0:02:29.6]} 12. Ne4 {[%clk 0:02:48]}
12... O-O {[%clk 0:02:25.4]} 13. Bg5 {[%clk 0:02:46.5]} 13... h6 {[%clk
0:02:21.2]} 14. Bxe7 {[%clk 0:02:45]} 14... Qxe7 {[%clk 0:02:21.7]} 15. Nd6
{[%clk 0:02:45.3]} 15... Nxe5 {[%clk 0:02:19.7]} 16. Nxb7 {[%clk 0:02:32.3]}
16... Nxf3+ {[%clk 0:02:19.3]} 17. Qxf3 {[%clk 0:02:31.3]} 17... Qxb7 {[%clk
0:02:19.8]} 18. Qe4 {[%clk 0:02:29]} 18... g6 {[%clk 0:02:16.2]} 19. h4 {[%clk
0:02:28.2]} 19... Nf6 {[%clk 0:02:05.2]} 20. Qxb7 {[%clk 0:02:25.5]} 1-0

[Event "Late-Titled-Tuesday-Blitz-March-19-2024"]
[Site "Chess.com"]
[Date "2024.03.19"]
[Round "4"]
[White "Viktor_Poddubnyi"]
[Black "Nicolik"]
[Result "0-1"]
[WhiteElo "2286"]
[BlackElo "2521"]
[TimeControl "180+1"]
[EndTime "14:34:14 PDT"]
[Termination "Nicolik won by resignation"]

1. e4 {[%clk 0:03:00]} 1... c5 {[%clk 0:02:57.8]} 2. Nf3 {[%clk 0:02:59.8]} 2...
e6 {[%clk 0:02:57.9]} 3. g3 {[%clk 0:02:59.3]} 3... Nc6 {[%clk 0:02:56.1]} 4.
Bg2 {[%clk 0:02:59]} 4... Nf6 {[%clk 0:02:56.6]} 5. e5 {[%clk 0:02:59.2]} 5...
Ng4 {[%clk 0:02:56.8]} 6. b4 {[%clk 0:02:59.2]} 6... Ngxe5 {[%clk 0:02:53.6]} 7.
Nxe5 {[%clk 0:02:56.9]} 7... Nxe5 {[%clk 0:02:53.8]} 8. bxc5 {[%clk 0:02:57.8]}
8... Nc6 {[%clk 0:02:31.1]} 9. d4 {[%clk 0:02:54.3]} 9... b6 {[%clk 0:02:29.2]}
10. d5 {[%clk 0:02:47.5]} 10... exd5 {[%clk 0:02:26.2]} 11. cxb6 {[%clk
0:02:46.1]} 11... Ba6 {[%clk 0:02:02.7]} 12. Bxd5 {[%clk 0:02:39.2]} 12... Bb4+
{[%clk 0:02:00.9]} 13. Bd2 {[%clk 0:02:23.1]} 13... Qe7+ {[%clk 0:01:57.9]} 0-1

[Event "Late-Titled-Tuesday-Blitz-March-19-2024"]
[Site "Chess.com"]
[Date "2024.03.19"]
[Round "4"]
[White "CristianS27"]
[Black "ogpin"]
[Result "1-0"]
[WhiteElo "2513"]
[BlackElo "2243"]
[TimeControl "180+1"]
[EndTime "14:34:23 PDT"]
[Termination "CristianS27 won by resignation"]

1. e4 {[%clk 0:03:00.9]} 1... Nc6 {[%clk 0:02:58.9]} 2. Nf3 {[%clk 0:03:00.6]}
2... d6 {[%clk 0:02:56.7]} 3. d4 {[%clk 0:02:59.8]} 3... e5 {[%clk 0:02:57.3]}
4. d5 {[%clk 0:02:59.8]} 4... Nce7 {[%clk 0:02:57.3]} 5. c4 {[%clk 0:03:00.1]}
5... f5 {[%clk 0:02:57.1]} 6. Nc3 {[%clk 0:03:00.5]} 6... Nf6 {[%clk 0:02:57]}
7. Bd3 {[%clk 0:03:00.4]} 7... g6 {[%clk 0:02:52.2]} 8. O-O {[%clk 0:02:55.8]}
8... Bg7 {[%clk 0:02:51.9]} 9. c5 {[%clk 0:02:55.9]} 9... O-O {[%clk 0:02:50.6]}
10. Nd2 {[%clk 0:02:55]} 10... fxe4 {[%clk 0:02:43.2]} 11. Ndxe4 {[%clk
0:02:53.5]} 11... Nxe4 {[%clk 0:02:33.3]} 12. Nxe4 {[%clk 0:02:54.4]} 12... dxc5
{[%clk 0:02:23.5]} 13. Bc4 {[%clk 0:02:50.9]} 13... Kh8 {[%clk 0:02:16.4]} 14.
d6 {[%clk 0:02:39.8]} 14... cxd6 {[%clk 0:02:14.8]} 15. Nxd6 {[%clk 0:02:40.2]}
15... Bf5 {[%clk 0:01:53.1]} 16. Be3 {[%clk 0:02:29.1]} 16... Qxd6 {[%clk
0:01:38.2]} 17. Qxd6 {[%clk 0:02:26.6]} 1-0

[Event "Late-Titled-Tuesday-Blitz-March-19-2024"]
[Site "Chess.com"]
[Date "2024.03.19"]
[Round "4"]
[White "PNEPaul"]
[Black "Zeitnot593"]
[Result "1/2-1/2"]
[WhiteElo "1993"]
[BlackElo "2264"]
[TimeControl "180+1"]
[EndTime "14:34:40 PDT"]
[Termination "Game drawn by repetition"]

1. e4 {[%clk 0:03:00.9]} 1... c5 {[%clk 0:02:48.4]} 2. Nf3 {[%clk 0:02:59.7]}
2... g6 {[%clk 0:02:48.3]} 3. d4 {[%clk 0:02:59.1]} 3... cxd4 {[%clk 0:02:48.5]}
4. c3 {[%clk 0:02:59.2]} 4... Bg7 {[%clk 0:02:48]} 5. Bc4 {[%clk 0:02:58.2]}
5... e6 {[%clk 0:02:47.9]} 6. cxd4 {[%clk 0:02:57]} 6... d5 {[%clk 0:02:46.4]}
7. exd5 {[%clk 0:02:56.3]} 7... exd5 {[%clk 0:02:47.3]} 8. Bb5+ {[%clk
0:02:56.4]} 8... Bd7 {[%clk 0:02:47.1]} 9. Qe2+ {[%clk 0:02:54.4]} 9... Ne7
{[%clk 0:02:46.5]} 10. Bxd7+ {[%clk 0:02:40.1]} 10... Qxd7 {[%clk 0:02:42.2]}
11. Bg5 {[%clk 0:02:36.5]} 11... Nc6 {[%clk 0:02:39.4]} 12. Bxe7 {[%clk
0:02:35.3]} 12... Qxe7 {[%clk 0:02:33.7]} 13. Qxe7+ {[%clk 0:02:31.9]} 13...
Kxe7 {[%clk 0:02:33.9]} 14. Nc3 {[%clk 0:02:29.8]} 14... Rhe8 {[%clk 0:02:22.1]}
15. O-O-O {[%clk 0:02:27.5]} 15... Kd6 {[%clk 0:02:19.7]} 16. Nb5+ {[%clk
0:02:24.5]} 16... Kd7 {[%clk 0:02:19.9]} 17. Nc3 {[%clk 0:02:22.3]} 17... Rac8
{[%clk 0:02:05.6]} 18. Kb1 {[%clk 0:02:19.7]} 18... Kd6 {[%clk 0:01:45.2]} 19.
Nb5+ {[%clk 0:02:17.9]} 19... Kd7 {[%clk 0:01:43.6]} 20. Nc3 {[%clk 0:02:17.2]}
20... Kd6 {[%clk 0:01:28.8]} 21. Nb5+ {[%clk 0:02:16.6]} 21... Kd7 {[%clk
0:01:27.9]} 22. Nc3 {[%clk 0:02:16.4]} 1/2-1/2

[Event "Late-Titled-Tuesday-Blitz-March-19-2024"]
[Site "Chess.com"]
[Date "2024.03.19"]
[Round "4"]
[White "babero_gordo"]
[Black "Cluke86"]
[Result "0-1"]
[WhiteElo "2110"]
[BlackElo "2315"]
[TimeControl "180+1"]
[EndTime "14:35:00 PDT"]
[Termination "Cluke86 won by resignation"]

1. e4 {[%clk 0:02:51.9]} 1... d6 {[%clk 0:02:57.7]} 2. d4 {[%clk 0:02:50.3]}
2... Nf6 {[%clk 0:02:57.3]} 3. Nc3 {[%clk 0:02:50.2]} 3... e5 {[%clk 0:02:56.3]}
4. Nf3 {[%clk 0:02:49]} 4... Nbd7 {[%clk 0:02:52.3]} 5. Bc4 {[%clk 0:02:47.5]}
5... Be7 {[%clk 0:02:49.5]} 6. O-O {[%clk 0:02:46.8]} 6... c6 {[%clk 0:02:46.6]}
7. a4 {[%clk 0:02:45.9]} 7... Qc7 {[%clk 0:02:45.6]} 8. h3 {[%clk 0:02:42.3]}
8... h6 {[%clk 0:02:44.6]} 9. Qe2 {[%clk 0:02:41.5]} 9... g5 {[%clk 0:02:44.2]}
10. dxe5 {[%clk 0:02:09.1]} 10... dxe5 {[%clk 0:02:43.9]} 11. b3 {[%clk
0:02:07.2]} 11... Nf8 {[%clk 0:02:40.6]} 12. Ba3 {[%clk 0:02:03.3]} 12... Ng6
{[%clk 0:02:35.8]} 13. Bxe7 {[%clk 0:02:00.5]} 13... Qxe7 {[%clk 0:02:36.7]} 14.
Qd2 {[%clk 0:01:54.4]} 14... g4 {[%clk 0:02:33.8]} 15. hxg4 {[%clk 0:01:51.8]}
15... Bxg4 {[%clk 0:02:30.8]} 16. Qe3 {[%clk 0:01:48.6]} 16... Nf4 {[%clk
0:02:25.4]} 17. Rad1 {[%clk 0:01:23.2]} 17... Rg8 {[%clk 0:02:24.4]} 18. Kh2
{[%clk 0:01:19]} 18... Bh5 {[%clk 0:02:12.4]} 19. Rg1 {[%clk 0:01:10.1]} 19...
Ng4+ {[%clk 0:02:11.2]} 0-1

[Event "Late-Titled-Tuesday-Blitz-March-19-2024"]
[Site "Chess.com"]
[Date "2024.03.19"]
[Round "4"]
[White "NoSpaghettiForYou"]
[Black "TheKnightOfBosnia"]
[Result "0-1"]
[WhiteElo "2423"]
[BlackElo "2613"]
[TimeControl "180+1"]
[EndTime "14:35:19 PDT"]
[Termination "TheKnightOfBosnia won by resignation"]

1. d4 {[%clk 0:03:00.9]} 1... Nf6 {[%clk 0:02:59.4]} 2. c4 {[%clk 0:03:01]} 2...
e6 {[%clk 0:02:59.8]} 3. Nc3 {[%clk 0:03:01.4]} 3... d5 {[%clk 0:03:00.4]} 4.
cxd5 {[%clk 0:03:01]} 4... exd5 {[%clk 0:03:01.3]} 5. Bg5 {[%clk 0:03:01.4]}
5... c6 {[%clk 0:03:01.5]} 6. e3 {[%clk 0:03:01.7]} 6... Be7 {[%clk 0:03:02]} 7.
Bd3 {[%clk 0:03:01.9]} 7... Nbd7 {[%clk 0:03:02.3]} 8. Nge2 {[%clk 0:03:01.2]}
8... O-O {[%clk 0:03:02.7]} 9. O-O {[%clk 0:03:01.2]} 9... Re8 {[%clk
0:03:02.4]} 10. a4 {[%clk 0:02:56.9]} 10... a5 {[%clk 0:02:59.7]} 11. Qc2 {[%clk
0:02:56.4]} 11... Nf8 {[%clk 0:02:59.8]} 12. f3 {[%clk 0:02:53.7]} 12... g6
{[%clk 0:02:59.1]} 13. Bh4 {[%clk 0:02:43.6]} 13... Ne6 {[%clk 0:02:57.2]} 14.
h3 {[%clk 0:02:38.3]} 14... Qb6 {[%clk 0:02:43.9]} 15. Bf2 {[%clk 0:02:34.4]}
15... c5 {[%clk 0:02:35.1]} 16. Bb5 {[%clk 0:02:20.2]} 16... Rd8 {[%clk
0:02:32.2]} 17. Rad1 {[%clk 0:02:13.1]} 17... cxd4 {[%clk 0:02:28.9]} 18. Nxd4
{[%clk 0:02:12.4]} 18... Nxd4 {[%clk 0:02:29]} 19. Rxd4 {[%clk 0:02:12.4]} 19...
Bc5 {[%clk 0:02:28.3]} 20. Rf4 {[%clk 0:02:01.5]} 20... Bxe3 {[%clk 0:02:15.5]}
21. Kh1 {[%clk 0:01:48.9]} 21... Nh5 {[%clk 0:01:56.4]} 22. Bxe3 {[%clk
0:01:30.3]} 22... Ng3+ {[%clk 0:01:50.8]} 0-1

[Event "Late-Titled-Tuesday-Blitz-March-19-2024"]
[Site "Chess.com"]
[Date "2024.03.19"]
[Round "4"]
[White "Yaacovn"]
[Black "Defenstrator"]
[Result "1-0"]
[WhiteElo "2870"]
[BlackElo "2476"]
[TimeControl "180+1"]
[EndTime "14:35:47 PDT"]
[Termination "Yaacovn won by resignation"]

1. d4 {[%clk 0:03:00.9]} 1... Nf6 {[%clk 0:02:52.4]} 2. e3 {[%clk 0:02:54.6]}
2... c5 {[%clk 0:02:51.3]} 3. c3 {[%clk 0:02:52.2]} 3... Nc6 {[%clk 0:02:46.3]}
4. f4 {[%clk 0:02:51.3]} 4... d6 {[%clk 0:02:40.4]} 5. Nf3 {[%clk 0:02:51.3]}
5... g6 {[%clk 0:02:34.8]} 6. Bd3 {[%clk 0:02:51.1]} 6... e5 {[%clk 0:02:31.5]}
7. fxe5 {[%clk 0:02:46.9]} 7... dxe5 {[%clk 0:02:31.9]} 8. Nxe5 {[%clk
0:02:44.8]} 8... Nxe5 {[%clk 0:02:30]} 9. dxe5 {[%clk 0:02:45.7]} 9... Ng4
{[%clk 0:02:18.9]} 10. Bb5+ {[%clk 0:02:45.5]} 10... Bd7 {[%clk 0:02:17.8]} 11.
Qxg4 {[%clk 0:02:09.6]} 11... Bxb5 {[%clk 0:02:17.3]} 12. c4 {[%clk 0:02:09.7]}
12... Bc6 {[%clk 0:02:06.8]} 13. O-O {[%clk 0:02:05.5]} 13... Qe7 {[%clk
0:01:52.8]} 14. Nc3 {[%clk 0:01:55.6]} 14... Qxe5 {[%clk 0:01:43]} 15. e4 {[%clk
0:01:42.1]} 15... Bd6 {[%clk 0:01:34.2]} 16. Bf4 {[%clk 0:01:40.5]} 16... Qd4+
{[%clk 0:01:34.4]} 17. Kh1 {[%clk 0:01:41]} 17... Bxf4 {[%clk 0:01:32.8]} 18.
Qxf4 {[%clk 0:01:40.6]} 18... Qxc4 {[%clk 0:01:04]} 19. Qe5+ {[%clk 0:01:37.5]}
1-0

[Event "Late-Titled-Tuesday-Blitz-March-19-2024"]
[Site "Chess.com"]
[Date "2024.03.19"]
[Round "4"]
[White "jaskol95"]
[Black "chessamical"]
[Result "0-1"]
[WhiteElo "2489"]
[BlackElo "2284"]
[TimeControl "180+1"]
[EndTime "14:35:48 PDT"]
[Termination "chessamical won by resignation"]

1. e4 {[%clk 0:03:00.9]} 1... d5 {[%clk 0:02:48.2]} 2. exd5 {[%clk 0:02:54.9]}
2... Qxd5 {[%clk 0:02:48]} 3. h3 {[%clk 0:02:50]} 3... Nf6 {[%clk 0:02:45.9]} 4.
Nf3 {[%clk 0:02:48.7]} 4... Nc6 {[%clk 0:02:37.3]} 5. d4 {[%clk 0:02:48]} 5...
e5 {[%clk 0:02:15.3]} 6. dxe5 {[%clk 0:02:40.7]} 6... Qxd1+ {[%clk 0:02:14]} 7.
Kxd1 {[%clk 0:02:41.6]} 7... Ne4 {[%clk 0:02:13.6]} 8. Be3 {[%clk 0:02:37.7]}
8... Bc5 {[%clk 0:02:07]} 9. Bxc5 {[%clk 0:02:25.5]} 9... Nxc5 {[%clk
0:02:06.4]} 10. Bb5 {[%clk 0:02:23.9]} 10... Bd7 {[%clk 0:02:05.2]} 11. Nbd2
{[%clk 0:02:17.3]} 11... a6 {[%clk 0:02:03.6]} 12. Be2 {[%clk 0:02:10.3]} 12...
O-O-O {[%clk 0:02:01]} 13. c3 {[%clk 0:02:02.4]} 13... Rhe8 {[%clk 0:01:56.2]}
14. Re1 {[%clk 0:01:31.3]} 14... Nxe5 {[%clk 0:01:54.8]} 15. Nxe5 {[%clk
0:01:31.8]} 15... Rxe5 {[%clk 0:01:53.3]} 16. b4 {[%clk 0:01:30.6]} 16... Ba4+
{[%clk 0:01:40.8]} 17. Kc1 {[%clk 0:01:30.7]} 17... Nd3+ {[%clk 0:01:39.4]} 18.
Bxd3 {[%clk 0:01:20.9]} 18... Rxe1+ {[%clk 0:01:39.1]} 19. Kb2 {[%clk
0:01:20.8]} 19... Rxa1 {[%clk 0:01:20.6]} 0-1

[Event "Late-Titled-Tuesday-Blitz-March-19-2024"]
[Site "Chess.com"]
[Date "2024.03.19"]
[Round "4"]
[White "dawid498"]
[Black "esrosenberg"]
[Result "1-0"]
[WhiteElo "2701"]
[BlackElo "2485"]
[TimeControl "180+1"]
[EndTime "14:36:00 PDT"]
[Termination "dawid498 won by resignation"]

1. e4 {[%clk 0:03:00.9]} 1... e6 {[%clk 0:03:00.1]} 2. d4 {[%clk 0:03:00.8]}
2... d5 {[%clk 0:03:00.7]} 3. e5 {[%clk 0:03:01.4]} 3... c5 {[%clk 0:03:00.9]}
4. c3 {[%clk 0:03:02.1]} 4... Nc6 {[%clk 0:03:01.6]} 5. Nf3 {[%clk 0:03:02.8]}
5... Bd7 {[%clk 0:03:02.3]} 6. Bd3 {[%clk 0:03:02.8]} 6... cxd4 {[%clk
0:02:59.8]} 7. O-O {[%clk 0:03:03.4]} 7... Qb6 {[%clk 0:02:58.4]} 8. Re1 {[%clk
0:03:02.9]} 8... Rc8 {[%clk 0:02:55.8]} 9. Nbd2 {[%clk 0:02:57.8]} 9... Nh6
{[%clk 0:02:50.4]} 10. Nb3 {[%clk 0:02:41.9]} 10... dxc3 {[%clk 0:02:46.2]} 11.
bxc3 {[%clk 0:02:42.8]} 11... a6 {[%clk 0:02:42.7]} 12. Rb1 {[%clk 0:02:09.8]}
12... Qa7 {[%clk 0:02:36.2]} 13. Be3 {[%clk 0:01:53.9]} 13... Qb8 {[%clk
0:02:36.2]} 14. Nc5 {[%clk 0:01:48.1]} 14... Bxc5 {[%clk 0:02:31]} 15. Bxc5
{[%clk 0:01:49]} 15... Ne7 {[%clk 0:02:31.6]} 16. Bxe7 {[%clk 0:01:11.1]} 16...
Kxe7 {[%clk 0:02:31.9]} 17. Bxa6 {[%clk 0:01:11.8]} 17... Bc6 {[%clk 0:02:30.5]}
18. Nd4 {[%clk 0:01:04.4]} 18... Qa8 {[%clk 0:01:53.8]} 19. Nxc6+ {[%clk
0:00:59.5]} 19... bxc6 {[%clk 0:01:53.4]} 20. Bxc8 {[%clk 0:01:00.4]} 20... Rxc8
{[%clk 0:01:53.8]} 21. Qb3 {[%clk 0:00:47.8]} 21... Rc7 {[%clk 0:01:53.3]} 22.
Qb4+ {[%clk 0:00:42.2]} 22... Kd7 {[%clk 0:01:53.7]} 23. Qd6+ {[%clk 0:00:42]}
23... Kc8 {[%clk 0:01:54.4]} 24. Qf8+ {[%clk 0:00:41.5]} 1-0

[Event "Late-Titled-Tuesday-Blitz-March-19-2024"]
[Site "Chess.com"]
[Date "2024.03.19"]
[Round "4"]
[White "Vaathi_Coming"]
[Black "DanielNaroditsky"]
[Result "0-1"]
[WhiteElo "2886"]
[BlackElo "3171"]
[TimeControl "180+1"]
[EndTime "14:36:22 PDT"]
[Termination "DanielNaroditsky won by resignation"]

1. g3 {[%clk 0:03:00.9]} 1... e5 {[%clk 0:02:59.5]} 2. Bg2 {[%clk 0:03:00.7]}
2... d5 {[%clk 0:02:58.8]} 3. d3 {[%clk 0:03:00.5]} 3... Nf6 {[%clk 0:02:59.4]}
4. Nf3 {[%clk 0:03:00.3]} 4... Bd6 {[%clk 0:02:59.8]} 5. O-O {[%clk 0:03:00.3]}
5... O-O {[%clk 0:03:00.4]} 6. a4 {[%clk 0:02:48.6]} 6... a5 {[%clk 0:02:51.7]}
7. c3 {[%clk 0:02:45.2]} 7... c6 {[%clk 0:02:44.2]} 8. Qc2 {[%clk 0:02:44.7]}
8... Bg4 {[%clk 0:02:43.4]} 9. e4 {[%clk 0:02:40.3]} 9... Nbd7 {[%clk 0:02:42]}
10. Na3 {[%clk 0:02:31.2]} 10... h6 {[%clk 0:02:40.4]} 11. Re1 {[%clk
0:02:25.6]} 11... Re8 {[%clk 0:02:39.8]} 12. exd5 {[%clk 0:02:16.8]} 12... cxd5
{[%clk 0:02:35.8]} 13. Nb5 {[%clk 0:02:16.6]} 13... Bb8 {[%clk 0:02:36]} 14. Bd2
{[%clk 0:02:07]} 14... Bf5 {[%clk 0:02:21.3]} 15. Nh4 {[%clk 0:01:54.9]} 15...
Bh7 {[%clk 0:02:21.3]} 16. Bh3 {[%clk 0:01:55.3]} 16... e4 {[%clk 0:02:05.9]}
17. dxe4 {[%clk 0:01:34.7]} 17... Nxe4 {[%clk 0:01:58.3]} 18. Qd1 {[%clk
0:01:32.4]} 18... Ne5 {[%clk 0:01:47.4]} 19. Bf4 {[%clk 0:01:32.1]} 19... Nxf2
{[%clk 0:01:33.5]} 20. Kxf2 {[%clk 0:01:17.7]} 20... Nd3+ {[%clk 0:01:32.9]} 21.
Qxd3 {[%clk 0:01:07.3]} 21... Bxd3 {[%clk 0:01:33.8]} 22. Rxe8+ {[%clk
0:01:05.4]} 22... Qxe8 {[%clk 0:01:34.7]} 23. Re1 {[%clk 0:01:05]} 23... Qd8
{[%clk 0:01:33.3]} 24. Bxb8 {[%clk 0:00:57.6]} 24... Rxb8 {[%clk 0:01:33.6]} 25.
Nd4 {[%clk 0:00:58.5]} 25... Qb6 {[%clk 0:01:32.4]} 26. Bf5 {[%clk 0:00:56]}
26... Qxb2+ {[%clk 0:01:31.1]} 0-1

[Event "Late-Titled-Tuesday-Blitz-March-19-2024"]
[Site "Chess.com"]
[Date "2024.03.19"]
[Round "4"]
[White "koncheto"]
[Black "RianKapriaga"]
[Result "1-0"]
[WhiteElo "2555"]
[BlackElo "2352"]
[TimeControl "180+1"]
[EndTime "14:36:25 PDT"]
[Termination "koncheto won by checkmate"]

1. e4 {[%clk 0:03:00.5]} 1... c6 {[%clk 0:02:56.2]} 2. d4 {[%clk 0:03:00.6]}
2... d5 {[%clk 0:02:56]} 3. Nc3 {[%clk 0:03:00.7]} 3... dxe4 {[%clk 0:02:55.8]}
4. Nxe4 {[%clk 0:03:01.6]} 4... Bf5 {[%clk 0:02:55.5]} 5. Ng3 {[%clk 0:03:01.4]}
5... Bg6 {[%clk 0:02:56.1]} 6. Nf3 {[%clk 0:03:01.6]} 6... Nd7 {[%clk
0:02:56.2]} 7. h4 {[%clk 0:03:01.9]} 7... h6 {[%clk 0:02:56.4]} 8. h5 {[%clk
0:03:01.1]} 8... Bh7 {[%clk 0:02:56.6]} 9. Bd3 {[%clk 0:03:01.3]} 9... Bxd3
{[%clk 0:02:57.2]} 10. Qxd3 {[%clk 0:03:02.2]} 10... e6 {[%clk 0:02:57.6]} 11.
Bd2 {[%clk 0:03:02.1]} 11... Ngf6 {[%clk 0:02:58]} 12. O-O-O {[%clk 0:03:02.3]}
12... Be7 {[%clk 0:02:57.8]} 13. Kb1 {[%clk 0:03:01.6]} 13... O-O {[%clk
0:02:56.7]} 14. Qe2 {[%clk 0:03:01.5]} 14... Qb6 {[%clk 0:02:53.1]} 15. Ne5
{[%clk 0:03:00.8]} 15... Rad8 {[%clk 0:02:23.1]} 16. Ng6 {[%clk 0:02:57]} 16...
Rfe8 {[%clk 0:02:15.1]} 17. Nxe7+ {[%clk 0:02:56.9]} 17... Rxe7 {[%clk 0:02:16]}
18. Nf5 {[%clk 0:02:57.8]} 18... Ree8 {[%clk 0:02:10.2]} 19. Nd6 {[%clk
0:02:57.7]} 19... Rf8 {[%clk 0:00:48.4]} 20. g4 {[%clk 0:02:41.1]} 20... c5
{[%clk 0:00:34.8]} 21. Nc4 {[%clk 0:02:39.4]} 21... Qa6 {[%clk 0:00:28.4]} 22.
g5 {[%clk 0:02:39]} 22... hxg5 {[%clk 0:00:27]} 23. h6 {[%clk 0:02:38.7]} 23...
g4 {[%clk 0:00:13.9]} 24. hxg7 {[%clk 0:02:31.4]} 24... Kxg7 {[%clk 0:00:14.8]}
25. Rdg1 {[%clk 0:02:16.3]} 25... Rh8 {[%clk 0:00:08.9]} 26. Rxg4+ {[%clk
0:02:15.4]} 26... Nxg4 {[%clk 0:00:05.2]} 27. Qxg4+ {[%clk 0:02:16.3]} 27... Kf6
{[%clk 0:00:05.7]} 28. Qg5# {[%clk 0:02:16.3]} 1-0

[Event "Late-Titled-Tuesday-Blitz-March-19-2024"]
[Site "Chess.com"]
[Date "2024.03.19"]
[Round "4"]
[White "Misterfox120"]
[Black "ukchessbomber"]
[Result "0-1"]
[WhiteElo "2453"]
[BlackElo "2641"]
[TimeControl "180+1"]
[EndTime "14:36:28 PDT"]
[Termination "ukchessbomber won by resignation"]

1. d4 {[%clk 0:02:56.1]} 1... c5 {[%clk 0:02:59.7]} 2. d5 {[%clk 0:02:55.1]}
2... f5 {[%clk 0:03:00.5]} 3. Bf4 {[%clk 0:02:44.4]} 3... g6 {[%clk 0:02:58.2]}
4. Nc3 {[%clk 0:02:42.4]} 4... Bg7 {[%clk 0:02:57.9]} 5. Qd2 {[%clk 0:02:42.8]}
5... d6 {[%clk 0:02:57.3]} 6. h4 {[%clk 0:02:42.8]} 6... a6 {[%clk 0:02:57.9]}
7. a4 {[%clk 0:02:37.3]} 7... h6 {[%clk 0:02:57.7]} 8. e3 {[%clk 0:02:35.8]}
8... Nf6 {[%clk 0:02:56.1]} 9. Bd3 {[%clk 0:02:35.6]} 9... Nbd7 {[%clk 0:02:56]}
10. Nge2 {[%clk 0:02:35.4]} 10... Ne5 {[%clk 0:02:56.1]} 11. Bxe5 {[%clk
0:02:24.7]} 11... dxe5 {[%clk 0:02:55.7]} 12. e4 {[%clk 0:02:25.4]} 12... c4
{[%clk 0:02:27.6]} 13. Bxc4 {[%clk 0:02:14.5]} 13... fxe4 {[%clk 0:02:28.4]} 14.
Ng3 {[%clk 0:02:10.6]} 14... Bf5 {[%clk 0:02:28]} 15. h5 {[%clk 0:02:05.5]}
15... Rc8 {[%clk 0:02:25.7]} 16. Qe2 {[%clk 0:02:01.9]} 16... Qa5 {[%clk
0:02:00.3]} 17. hxg6 {[%clk 0:01:38.1]} 17... Bxg6 {[%clk 0:01:59.4]} 18. O-O
{[%clk 0:01:30.8]} 18... Qb4 {[%clk 0:01:47]} 19. Bb3 {[%clk 0:01:21.6]} 19...
h5 {[%clk 0:01:31.5]} 20. Rfe1 {[%clk 0:01:10.6]} 20... h4 {[%clk 0:01:30.6]}
21. Ngxe4 {[%clk 0:01:02.9]} 21... h3 {[%clk 0:01:26.3]} 22. Nxf6+ {[%clk
0:00:43.9]} 22... Bxf6 {[%clk 0:01:25.8]} 23. Qg4 {[%clk 0:00:39.4]} 23... Qxg4
{[%clk 0:01:25.3]} 0-1

[Event "Late-Titled-Tuesday-Blitz-March-19-2024"]
[Site "Chess.com"]
[Date "2024.03.19"]
[Round "4"]
[White "SergioMoralesG"]
[Black "Rodalquilar"]
[Result "0-1"]
[WhiteElo "2474"]
[BlackElo "2764"]
[TimeControl "180+1"]
[EndTime "14:36:37 PDT"]
[Termination "Rodalquilar won on time"]

1. d4 {[%clk 0:00:56.2]} 1... d5 {[%clk 0:02:57.9]} 2. c4 {[%clk 0:00:54.4]}
2... e6 {[%clk 0:02:58.2]} 3. Nf3 {[%clk 0:00:54.9]} 3... Nf6 {[%clk 0:02:58.3]}
4. Nc3 {[%clk 0:00:55.5]} 4... a6 {[%clk 0:02:58.3]} 5. cxd5 {[%clk 0:00:54.9]}
5... exd5 {[%clk 0:02:58.7]} 6. Bg5 {[%clk 0:00:55.6]} 6... Be6 {[%clk
0:02:59.2]} 7. e3 {[%clk 0:00:55.7]} 7... Nbd7 {[%clk 0:02:59.7]} 8. Bd3 {[%clk
0:00:55.8]} 8... Bd6 {[%clk 0:02:59.8]} 9. h3 {[%clk 0:00:53.6]} 9... c6 {[%clk
0:02:59.4]} 10. Bf4 {[%clk 0:00:54]} 10... Qc7 {[%clk 0:02:59.1]} 11. Qd2 {[%clk
0:00:54.7]} 11... h6 {[%clk 0:02:57.6]} 12. O-O {[%clk 0:00:54.5]} 12... g5
{[%clk 0:02:56.9]} 13. Bxd6 {[%clk 0:00:54.2]} 13... Qxd6 {[%clk 0:02:57.8]} 14.
e4 {[%clk 0:00:52.9]} 14... dxe4 {[%clk 0:02:58.7]} 15. Nxe4 {[%clk 0:00:53.7]}
15... Nxe4 {[%clk 0:02:59.6]} 16. Bxe4 {[%clk 0:00:54.2]} 16... O-O-O {[%clk
0:02:54.4]} 17. Qc3 {[%clk 0:00:46.8]} 17... Kb8 {[%clk 0:02:53.3]} 18. Ne5
{[%clk 0:00:44.5]} 18... Nxe5 {[%clk 0:02:34.5]} 19. dxe5 {[%clk 0:00:45.4]}
19... Qd4 {[%clk 0:02:34.8]} 20. Rfe1 {[%clk 0:00:20.4]} 20... Qxc3 {[%clk
0:02:32.1]} 21. bxc3 {[%clk 0:00:21.3]} 21... Rd2 {[%clk 0:02:32.1]} 22. a4
{[%clk 0:00:15]} 22... a5 {[%clk 0:02:32.4]} 23. Rab1 {[%clk 0:00:14.7]} 23...
Kc7 {[%clk 0:02:32.7]} 24. Bf3 {[%clk 0:00:05.6]} 24... Rhd8 {[%clk 0:02:30.8]}
25. Bg4 {[%clk 0:00:04.8]} 25... Ra2 {[%clk 0:02:28]} 26. Bxe6 {[%clk
0:00:04.3]} 26... fxe6 {[%clk 0:02:28.9]} 27. Re4 {[%clk 0:00:04.4]} 27... Rdd2
{[%clk 0:02:26.9]} 28. Rf1 {[%clk 0:00:04.2]} 28... Re2 {[%clk 0:02:27.3]} 29.
Rg4 {[%clk 0:00:03.7]} 29... Rxe5 {[%clk 0:02:26.1]} 30. h4 {[%clk 0:00:04.2]}
30... Rf5 {[%clk 0:02:23.5]} 31. f4 {[%clk 0:00:03.8]} 31... Rxa4 {[%clk
0:02:19.2]} 0-1